bitfinex/quotes_ETHUSD_20250721
["timestamp","ask_amount","ask_price","bid_price","bid_amount"]
[1753137580214,0.132,3773.0,3772.9,4.4032]
[1753137583555,0.132,3773.0,3772.9,7.05368106]
[1753137583758,0.132,3773.0,3772.9,4.4032]
[1753137584954,0.132,3773.0,3772.9,7.05368106]
[1753137585856,0.132,3773.0,3772.9,4.4032]
[1753137587554,0.132,3773.0,3772.9,7.05368106]
[1753137588952,0.132,3773.0,3772.9,10.07728106]
[1753137589152,0.132,3773.0,3772.9,19.31330736]
[1753137589353,0.132,3773.0,3772.9,19.86330736]
[1753137589531,0.132,3773.0,3772.9,13.31760759]
[1753137591923,0.132,3773.0,3772.9,13.31860759]
[1753137593465,0.132,3773.0,3772.9,3.785]
[1753137593773,0.132,3773.0,3772.9,7.021]
[1753137594676,0.132,3773.0,3772.9,16.80238571]
[1753137594977,0.132,3773.0,3772.9,17.61858571]
[1753137595277,0.132,3773.0,3772.9,11.49248106]
[1753137595569,0.032,3773.0,3772.9,14.12001499]
[1753137601086,0.032,3773.0,3772.9,10.91953393]
[1753137601286,0.032,3773.0,3772.9,7.021]
[1753137601488,0.032,3773.0,3772.9,9.67148106]
[1753137601676,0.032,3773.0,3772.9,10.12628106]
[1753137602989,0.032,3773.0,3772.9,7.021]
[1753137603387,0.032,3773.0,3772.9,10.12628106]
[1753137605197,0.032,3773.0,3772.9,7.4758]
[1753137605398,0.032,3773.0,3772.9,10.12628106]
[1753137606204,0.032,3773.0,3772.9,7.021]
[1753137607505,0.032,3773.0,3772.9,11.01948106]
[1753137607685,0.032,3773.0,3772.9,11.47428106]
[1753137613925,0.034,3773.0,3772.9,11.47428106]
[1753137614597,0.034,3773.0,3772.9,7.021]
[1753137615125,0.034,3773.0,3772.9,7.4758]
[1753137615329,0.034,3773.0,3772.9,10.67628106]
[1753137618618,0.034,3773.0,3772.9,10.22148106]
[1753137618819,0.034,3773.0,3772.9,10.68478106]
[1753137619319,0.034,3773.0,3772.9,7.571]
[1753137619521,0.034,3773.0,3772.9,10.68478106]
[1753137623251,0.034,3773.0,3772.9,6.20148106]
[1753137623431,0.034,3773.0,3772.9,7.59750481]
[1753137623729,0.034,3773.0,3772.9,7.571]
[1753137624114,0.034,3773.0,3772.9,10.22148106]
[1753137624306,0.034,3773.0,3772.9,8.0343]
[1753137625116,0.034,3773.0,3772.9,3.001]
[1753137625320,0.034,3773.0,3772.9,7.021]
[1753137625904,0.034,3773.0,3772.9,7.02]
[1753137628426,0.034,3773.0,3772.9,7.4833]
[1753137628996,0.034,3773.0,3772.9,7.02]
[1753137629834,0.034,3773.0,3772.9,10.68378106]
[1753137646746,0.01,3773.1,3773.0,6.20041081]
[1753137646953,1e-08,3773.3,3773.2,7.01037032]
[1753137647185,1e-08,3773.3,3773.2,17.15547497]
[1753137647483,1e-08,3773.3,3773.2,47.71857497]
[1753137647643,1e-08,3773.3,3773.2,47.49665797]
[1753137647845,1e-08,3773.3,3773.2,17.71857497]
[1753137648046,1e-08,3773.3,3773.2,35.61489297]
[1753137648251,1e-08,3773.3,3773.2,33.64689297]
[1753137649584,1e-08,3773.3,3773.2,33.64589297]
[1753137651685,1e-08,3773.3,3773.2,28.78216597]
[1753137651884,1e-08,3773.3,3773.2,24.71638697]
[1753137652471,1e-08,3773.3,3773.2,12.26347032]
[1753137652672,1e-08,3773.3,3773.2,16.28147032]
[1753137654988,1e-08,3773.3,3773.2,16.14947032]
[1753137656005,1e-08,3773.3,3773.2,46.14947032]
[1753137656191,1e-08,3773.3,3773.2,43.22730732]
[1753137656879,1e-08,3773.3,3773.2,34.34715732]
[1753137658312,1e-08,3773.3,3773.2,29.65715732]
[1753137659011,1e-08,3773.3,3773.2,16.30895732]
[1753137659217,1e-08,3773.3,3773.2,15.23474932]
[1753137659718,1e-08,3773.3,3773.2,13.82257132]
[1753137660600,1e-08,3773.3,3773.2,11.45947032]
[1753137661022,1e-08,3773.3,3773.2,14.92028232]
[1753137663540,1e-08,3773.3,3773.2,14.33225332]
[1753137664934,1e-08,3773.3,3773.2,11.45847032]
[1753137665106,1e-08,3773.3,3773.2,23.72444832]
[1753137665309,1e-08,3773.3,3773.2,18.71898232]
[1753137665635,1e-08,3773.3,3773.2,15.80298232]
[1753137665839,1e-08,3773.3,3773.2,14.31898232]
[1753137671566,1e-08,3773.3,3773.2,13.57284232]
[1753137672786,1e-08,3773.3,3773.2,6.20027032]
[1753137673084,1e-08,3773.3,3773.2,10.24277302]
[1753137673239,1e-08,3773.3,3773.2,10.21627032]
[1753137674678,1e-08,3773.3,3773.2,10.64737032]
[1753137675472,1e-08,3773.3,3773.2,3.55]
[1753137675677,0.13200001,3773.3,3773.2,7.5925027]
[1753137675980,0.13200001,3773.3,3773.2,7.566]
[1753137676384,0.13200001,3773.3,3773.2,10.21627032]
[1753137676945,0.13200001,3773.3,3773.2,6.20027032]
[1753137677163,0.13200001,3773.3,3773.2,10.67097302]
[1753137677346,0.13200001,3773.3,3773.2,10.64447032]
[1753137678086,0.13200001,3773.3,3773.2,10.21627032]
[1753137679309,0.13200001,3773.3,3773.2,9.66627032]
[1753137681005,0.13200001,3773.3,3773.2,10.47037032]
[1753137681313,0.13200001,3773.3,3773.2,10.89857032]
[1753137681509,0.13200001,3773.3,3773.2,10.09447032]
[1753137682607,0.13200001,3773.3,3773.2,6.07847032]
[1753137682808,0.13200001,3773.3,3773.2,9.69277302]
[1753137683009,0.13200001,3773.3,3773.2,9.66627032]
[1753137685329,0.13200001,3773.3,3773.2,7.016]
[1753137686642,0.13200001,3773.3,3773.2,9.66627032]
[1753137687904,0.13200001,3773.3,3773.2,10.09447032]
[1753137688119,1e-08,3773.3,3773.2,15.09108131]
[1753137688448,1e-08,3773.3,3773.2,31.89163521]
[1753137689140,1e-08,3773.3,3773.2,27.44502422]
[1753137690647,1e-08,3773.3,3773.2,28.7738671]
[1753137691643,1e-08,3773.3,3773.2,44.79048184]
[1753137692219,1e-08,3774.1,3774.0,2.64970853]
[1753137692429,1e-08,3774.1,3774.0,17.4728381]
[1753137692739,1e-08,3774.1,3774.0,17.9010381]
[1753137693049,1e-08,3774.1,3774.0,24.8799051]
[1753137693667,1e-08,3774.1,3774.0,25.8722421]
[1753137694873,1e-08,3774.1,3774.0,34.1523041]
[1753137695371,1e-08,3774.1,3774.0,31.7906581]
[1753137695552,1e-08,3774.1,3774.0,31.3052581]
[1753137695746,1e-08,3774.1,3774.0,31.2919891]
[1753137696366,1e-08,3774.1,3774.0,29.0732071]
[1753137696675,1e-08,3774.1,3774.0,29.9936401]
[1753137697272,1e-08,3774.1,3774.0,29.2592311]
[1753137697871,1e-08,3774.1,3774.0,24.8823911]
[1753137698650,1e-08,3774.1,3774.0,17.9000381]
[1753137698851,1e-08,3774.1,3774.0,37.7899671]
[1753137699050,2.65052058,3775.7,3774.8,3.98674697]
[1753137699051,0.754,3775.6,3774.8,3.98674697]
[1753137699248,0.754,3775.6,3774.8,17.51423843]
[1753137699432,0.754,3775.6,3774.8,17.91594697]
[1753137699837,0.754,3775.6,3774.8,13.90094697]
[1753137700034,1.041,3775.6,3774.8,12.68514697]
[1753137700238,0.754,3775.6,3774.8,16.56814697]
[1753137700474,0.132,3775.5,3774.8,17.12834697]
[1753137700787,0.132,3775.3,3774.8,16.99634697]
[1753137701146,0.132,3775.3,3774.8,16.99734697]
[1753137702382,0.132,3775.3,3774.8,12.98134697]
[1753137702576,0.132,3775.3,3774.8,16.99634697]
[1753137702763,0.132,3775.3,3774.8,10.10715291]
[1753137702968,0.9184,3775.1,3774.8,14.12215291]
[1753137703148,0.9184,3775.1,3774.8,16.77129988]
[1753137703349,0.7864,3775.5,3774.8,16.77129988]
[1753137703557,0.132,3775.3,3774.8,17.19949988]
[1753137703756,0.132,3775.3,3774.8,16.77129988]
[1753137706770,0.132,3775.3,3774.8,17.19949988]
[1753137708303,0.034,3775.3,3775.2,2.64886628]
[1753137708614,0.034,3775.3,3775.2,6.68935494]
[1753137708977,0.034,3775.3,3775.2,7.23935494]
[1753137709226,0.034,3775.3,3775.2,7.67736628]
[1753137709879,0.034,3775.3,3775.2,7.21286628]
[1753137711019,0.034,3775.3,3775.2,0.55]
[1753137711179,0.8315,3775.3,3775.2,7.564]
[1753137713492,0.8315,3775.3,3775.2,3.0]
[1753137713707,1.1185,3775.3,3775.2,3.0]
[1753137714012,1.1185,3775.3,3775.2,7.014]
[1753137714239,1.1185,3775.3,3775.2,3.0]
[1753137714435,1.1185,3775.3,3775.2,7.014]
[1753137714637,0.034,3775.3,3775.2,10.21286628]
[1753137714835,0.002,3775.7,3775.2,4.014]
[1753137715017,0.132,3775.4,3775.2,4.014]
[1753137715194,0.132,3775.4,3775.3,4.04248796]
[1753137715385,0.8972,3775.4,3775.3,0.02648796]
[1753137715608,1.1842,3775.4,3775.3,4.016]
[1753137716397,0.132,3775.4,3775.3,4.016]
[1753137716603,0.132,3775.4,3775.3,4.04248796]
[1753137716921,0.132,3775.4,3775.3,4.04348796]
[1753137717500,0.002,3775.7,3775.6,0.55]
[1753137717710,0.002,3775.7,3775.6,7.59348585]
[1753137717911,0.002,3775.7,3775.6,30.22220965]
[1753137718109,0.002,3775.7,3775.6,25.66450365]
[1753137718920,0.002,3775.7,3775.6,25.59808365]
[1753137719122,0.002,3775.7,3775.6,10.00247865]
[1753137719419,0.002,3775.7,3775.6,11.49838565]
[1753137720246,0.002,3775.7,3775.6,14.81266065]
[1753137720531,0.002,3775.7,3775.6,17.63644965]
[1753137720839,0.002,3775.7,3775.6,7.47538565]
[1753137720987,0.002,3775.7,3775.6,10.68608565]
[1753137722512,0.002,3775.7,3775.6,6.66308565]
[1753137722826,0.002,3775.7,3775.6,11.72686163]
[1753137722990,0.002,3775.7,3775.6,11.70037578]
[1753137723624,0.002,3775.7,3775.6,10.68608565]
[1753137724846,0.002,3775.7,3775.6,7.576]
[1753137724993,0.002,3775.7,3775.6,10.22458565]
[1753137725193,0.002,3775.7,3775.6,10.68908565]
[1753137726090,0.002,3775.7,3775.6,6.66308565]
[1753137726331,0.002,3775.7,3775.6,10.7155715]
[1753137726539,0.002,3775.7,3775.6,10.68908565]
[1753137728518,0.002,3775.7,3775.6,10.22258565]
[1753137728834,0.002,3775.7,3775.6,10.68708565]
[1753137734642,0.002,3775.7,3775.2,4.69]
[1753137734800,0.134,3775.7,3775.3,6.69723599]
[1753137734999,0.134,3775.7,3775.4,3.0]
[1753137735227,0.134,3775.7,3775.3,0.55]
[1753137735534,0.134,3775.7,3775.4,4.04848725]
[1753137736432,0.289,3775.7,3775.5,3.0]
[1753137736599,0.289,3775.7,3775.6,4.022]
[1753137737044,0.002,3775.7,3775.6,4.022]
[1753137737531,2.6505155,3775.7,3775.6,4.022]
[1753137737831,0.132,3775.6,3775.3,0.02648796]
[1753137738035,2.93752621,3775.7,3775.4,4.022]
[1753137738802,0.289,3775.7,3775.4,4.022]
[1753137739005,0.002,3775.7,3775.3,3.0]
[1753137739211,0.002,3775.7,3775.4,4.022]
[1753137739936,0.289,3775.7,3775.4,4.022]
[1753137740142,0.287,3775.6,3775.4,4.022]
[1753137740310,0.132,3775.4,3775.0,3.55]
[1753137740642,0.132,3775.4,3775.2,3.0]
[1753137740845,2.78072596,3775.4,3775.3,4.021]
[1753137741047,0.287,3775.4,3774.9,3.0]
[1753137741213,0.132,3775.2,3775.0,4.59749006]
[1753137741542,0.132,3775.2,3775.1,3.9792]
[1753137741950,0.132,3775.2,3775.1,6.65462581]
[1753137742837,0.132,3775.2,3775.1,4.00568936]
[1753137743450,0.132,3775.2,3775.1,6.65462581]
[1753137744665,0.132,3775.2,3775.1,4.00568936]
[1753137744966,0.132,3775.2,3775.1,6.65462581]
[1753137746058,0.132,3775.2,3775.1,6.22542581]
[1753137752165,0.132,3775.2,3775.1,3.57648936]
[1753137752376,0.132,3775.2,3775.1,7.59448936]
[1753137752562,0.132,3775.2,3775.1,10.21693645]
[1753137756286,0.132,3775.2,3775.1,10.16693645]
[1753137756489,0.132,3775.2,3775.1,10.59613645]
[1753137761290,0.132,3775.2,3775.1,7.9472]
[1753137761674,0.132,3775.2,3775.1,4.515]
[1753137761854,0.132,3775.2,3774.9,3.0]
[1753137762054,0.132,3775.2,3775.1,3.0]
[1753137762265,0.132,3775.2,3775.1,0.001]
[1753137762465,2.93586628,3775.2,3775.1,0.001]
[1753137762689,2.93586628,3775.2,3775.1,4.016]
[1753137762889,0.287,3775.2,3775.1,4.016]
[1753137763088,2.93586628,3775.2,3775.1,4.016]
[1753137763390,0.287,3775.2,3775.1,0.001]
[1753137763693,3.43250913,3775.3,3775.1,0.001]
[1753137763876,3.43250913,3775.3,3775.1,4.017]
[1753137764282,1.0707,3775.3,3775.1,4.017]
[1753137765060,0.7837,3775.3,3775.1,4.017]
[1753137765895,0.7837,3775.3,3775.1,0.001]
[1753137766102,0.7837,3775.3,3775.2,4.015]
[1753137772844,0.132,3775.2,3775.1,0.001]
[1753137773143,0.132,3775.2,3775.1,4.016]
[1753137782776,0.132,3775.2,3775.1,0.001]
[1753137782975,2.78086628,3775.2,3775.1,0.001]
[1753137783274,2.78086628,3775.2,3775.1,4.016]
[1753137783275,0.419,3775.2,3775.1,4.016]
[1753137783451,0.132,3775.2,3775.1,4.016]
[1753137784054,2.78086628,3775.2,3775.1,4.016]
[1753137784761,2.78086628,3775.2,3775.1,0.001]
[1753137785079,3.06786628,3775.2,3775.1,4.016]
[1753137785659,2.78086628,3775.2,3775.1,4.016]
[1753137787943,0.132,3775.2,3775.1,4.016]
[1753137788148,0.132,3775.2,3775.1,7.4652]
[1753137788361,0.132,3775.2,3775.1,10.11413645]
[1753137788652,0.132,3775.2,3775.1,10.90153645]
[1753137794186,0.132,3775.2,3775.1,8.2526]
[1753137795089,0.132,3775.2,3775.1,4.2376]
[1753137795287,0.132,3775.2,3775.1,8.27908936]
[1753137795587,0.132,3775.2,3775.1,3.001]
[1753137795791,0.132,3775.2,3775.1,7.016]
[1753137797578,0.132,3775.2,3775.1,7.4639]
[1753137798378,0.132,3775.2,3775.1,10.11283645]
[1753137799193,0.132,3775.2,3775.1,7.4639]
[1753137799510,0.002,3775.7,3775.2,4.3626]
[1753137799717,0.002,3775.7,3775.6,7.01118565]
[1753137799856,0.002,3775.7,3775.6,11.02918565]
[1753137800257,0.002,3775.7,3775.6,11.47708565]
[1753137800557,0.002,3775.7,3775.6,13.1545411]
[1753137801584,0.002,3775.7,3775.6,18.23728398]
[1753137801892,0.002,3775.7,3775.6,34.7215321]
[1753137802100,0.002,3775.7,3775.6,34.5173271]
[1753137802263,0.002,3775.7,3775.6,29.3926651]
[1753137802464,0.002,3775.7,3775.6,29.0196461]
[1753137802866,0.002,3775.7,3775.6,25.9299921]
[1753137803184,0.002,3775.7,3775.6,20.3447921]
[1753137803496,0.002,3775.7,3775.6,25.3987921]
[1753137804580,0.002,3775.7,3775.6,27.0334211]
[1753137805484,0.002,3775.7,3775.6,26.9114891]
[1753137805801,0.002,3775.7,3775.6,9.0526]
[1753137806016,0.002,3775.7,3775.6,16.16608565]
[1753137806222,0.002,3775.7,3775.6,11.47608565]
[1753137806722,0.002,3775.7,3775.6,8.8275]
[1753137807595,0.002,3775.7,3775.6,8.8295]
[1753137807800,0.002,3775.7,3775.6,11.47808565]
[1753137811502,0.002,3775.7,3775.6,11.47608565]
[1753137811707,0.002,3775.7,3775.6,11.67483461]
[1753137813698,0.002,3775.7,3775.6,13.12038894]
[1753137813903,0.002,3775.7,3775.6,13.25238894]
[1753137816137,0.002,3775.7,3775.6,9.23538894]
[1753137816435,0.002,3775.7,3775.6,13.25138894]
[1753137818758,0.002,3775.7,3775.6,13.25038894]
[1753137820853,0.002,3775.7,3775.6,5.97933461]
[1753137821043,0.002,3775.7,3775.6,9.86133461]
[1753137821237,0.002,3775.7,3775.6,16.66123461]
[1753137824921,0.002,3775.7,3775.6,9.55074896]
[1753137825423,0.002,3775.7,3775.6,13.56774896]
[1753137826251,0.002,3775.7,3775.6,14.01564896]
[1753137826953,0.002,3775.7,3775.6,16.66423461]
[1753137827254,0.002,3775.7,3775.6,14.01564896]
[1753137828946,0.002,3775.7,3775.6,16.66423461]
[1753137829857,0.002,3775.7,3775.6,49.9295303]
[1753137830166,1e-08,3775.7,3775.6,55.01227318]
[1753137830333,1e-08,3775.7,3775.6,54.6195303]
[1753137831945,1e-08,3775.7,3775.6,50.66817076]
[1753137832568,1e-08,3775.7,3775.6,50.27542788]
[1753137833153,1e-08,3775.7,3775.6,53.45417076]
[1753137833478,1e-08,3776.5,3776.4,3.95512457]
[1753137833776,1e-08,3776.5,3776.4,27.16254475]
[1753137833978,1e-08,3776.5,3776.4,26.85405151]
[1753137834781,1e-08,3776.5,3776.4,25.60802851]
[1753137836185,1e-08,3776.5,3776.4,23.25535851]
[1753137836690,1e-08,3776.5,3776.4,22.33314551]
[1753137837342,1e-08,3776.5,3776.4,12.38485351]
[1753137837891,1e-08,3776.5,3776.4,6.66702457]
[1753137838051,1e-08,3776.5,3776.4,7.21702457]
[1753137838257,1e-08,3776.5,3776.4,10.21702457]
[1753137838685,1e-08,3776.5,3776.4,10.21802457]
[1753137840288,1e-08,3776.5,3776.4,7.57]
[1753137840465,1e-08,3776.5,3776.4,7.02]
[1753137840656,1e-08,3776.5,3776.4,4.02]
[1753137840856,1e-08,3776.5,3776.4,4.04648024]
[1753137841808,1e-08,3776.5,3776.4,15.29800816]
[1753137842092,1e-08,3776.5,3776.4,15.27152792]
[1753137844760,1e-08,3776.5,3776.4,12.90122792]
[1753137845259,1e-08,3776.5,3776.4,17.75634392]
[1753137848907,2.78064952,3779.2,3777.0,2.64755206]
[1753137848908,2.64607523,3779.2,3777.0,2.64755206]
[1753137849115,2.64607523,3779.2,3777.3,0.757]
[1753137849116,0.287,3778.6,3777.3,0.757]
[1753137849317,0.7694,3778.2,3777.4,6.35]
[1753137849495,0.7694,3777.8,3777.4,6.35]
[1753137849797,0.287,3777.7,3777.4,6.35]
[1753137850099,0.287,3777.6,3777.5,4.17]
[1753137850260,0.287,3777.6,3777.4,6.35]
[1753137850462,1.0564,3777.5,3776.5,2.6479544]
[1753137850695,0.7743,3777.3,3776.5,2.6479544]
[1753137850891,0.7743,3777.3,3776.6,4.72]
[1753137851063,0.287,3777.2,3776.7,3.02647814]
[1753137851397,0.287,3777.1,3776.7,3.02647814]
[1753137852175,0.287,3777.0,3776.6,4.72]
[1753137852506,0.287,3777.0,3776.7,4.167]
[1753137853063,0.002,3777.3,3776.9,0.55]
[1753137853291,0.002,3777.3,3776.8,2.6477401]
[1753137853475,0.002,3777.3,3777.1,0.55]
[1753137853691,0.002,3777.3,3777.2,4.26547463]
[1753137854462,0.002,3777.3,3777.2,7.26547463]
[1753137854668,0.002,3777.3,3777.2,9.88646372]
[1753137855169,0.002,3777.3,3777.2,7.239]
[1753137855766,0.002,3777.3,3777.2,3.0]
[1753137856010,0.002,3777.3,3777.2,7.26047463]
[1753137856195,0.002,3777.3,3777.2,7.234]
[1753137856502,0.002,3777.3,3777.2,9.88146372]
[1753137856868,0.002,3777.3,3777.2,7.234]
[1753137857068,0.002,3777.3,3777.2,10.70786372]
[1753137857279,0.002,3777.3,3777.2,11.13986372]
[1753137857477,0.002,3777.3,3777.2,6.90586372]
[1753137857797,0.002,3777.3,3777.2,11.13786372]
[1753137858303,0.002,3777.3,3777.2,7.45586372]
[1753137858729,0.002,3777.3,3777.2,11.68886372]
[1753137858867,0.002,3777.3,3777.2,11.68786372]
[1753137859075,0.002,3777.3,3777.2,11.81986372]
[1753137859292,0.002,3777.3,3777.2,13.26660898]
[1753137859971,0.002,3777.3,3777.2,36.57412498]
[1753137860167,1e-08,3777.3,3777.2,23.50038498]
[1753137860615,1e-08,3777.3,3777.2,19.86032098]
[1753137860905,1e-08,3777.3,3777.2,18.19781198]
[1753137861506,1e-08,3777.3,3777.2,24.2598707]
[1753137864573,1e-08,3777.3,3777.2,18.19781198]
[1753137865312,1e-08,3777.3,3777.2,22.88781198]
[1753137865683,1e-08,3777.3,3777.2,22.87781198]
[1753137866289,1e-08,3777.3,3777.2,21.43006672]
[1753137866478,1e-08,3777.3,3777.2,15.22796372]
[1753137866677,1e-08,3777.3,3777.2,19.44696372]
[1753137868009,1e-08,3777.3,3777.2,22.23296372]
[1753137868401,1e-08,3777.3,3777.2,19.44696372]
[1753137868601,1e-08,3777.3,3777.2,22.07449765]
[1753137868780,1e-08,3777.3,3777.2,22.07149765]
[1753137869513,1e-08,3777.3,3777.2,28.13355637]
[1753137869700,1e-08,3777.4,3777.3,6.19739364]
[1753137869906,1e-08,3777.4,3777.3,41.71296757]
[1753137870213,1e-08,3777.4,3777.3,43.57463457]
[1753137870423,1e-08,3777.4,3777.3,34.85698657]
[1753137871151,1e-08,3777.4,3777.3,31.01198657]
[1753137871990,1e-08,3777.4,3777.3,28.33754557]
[1753137872607,1e-08,3777.4,3777.3,25.68934957]
[1753137872986,1e-08,3777.4,3777.3,25.88409963]
[1753137873586,1e-08,3777.4,3777.3,25.88309963]
[1753137879854,1e-08,3777.4,3777.3,31.51693563]
[1753137880352,1e-08,3777.4,3777.3,27.30693563]
[1753137880655,1e-08,3777.4,3777.3,30.68656763]
[1753137880851,1e-08,3777.4,3777.3,26.49356763]
[1753137881021,1e-08,3777.4,3777.3,30.68656763]
[1753137882830,1e-08,3777.4,3777.3,31.54383635]
[1753137883020,1e-08,3777.4,3777.3,64.32983635]
[1753137885624,1e-08,3777.4,3777.3,61.54383635]
[1753137886058,1e-08,3777.4,3777.3,57.35083635]
[1753137886227,1e-08,3777.4,3777.3,61.53783635]
[1753137886429,1e-08,3777.4,3777.3,55.47177763]
[1753137887380,1e-08,3777.4,3777.3,45.92529463]
[1753137888026,1e-08,3777.4,3777.3,55.47177763]
[1753137889227,1e-08,3777.4,3777.3,44.54935463]
[1753137889971,1e-08,3777.4,3777.3,44.54435463]
[1753137892264,1e-08,3777.4,3777.3,55.46677763]
[1753137895693,1e-08,3777.4,3777.3,51.28877763]
[1753137895895,1e-08,3777.4,3777.3,55.45677763]
[1753137899191,1e-08,3777.4,3777.3,61.51883635]
[1753137899387,1e-08,3777.4,3777.3,31.51883635]
[1753137899565,1e-08,3777.4,3777.3,61.51883635]
[1753137901499,0.002,3778.1,3778.0,2.64690312]
[1753137901681,1e-08,3778.1,3778.0,10.01921543]
[1753137901880,1e-08,3778.1,3778.0,14.49644843]
[1753137903097,1e-08,3778.1,3778.0,14.93774843]
[1753137903797,1e-08,3778.1,3778.0,14.49644843]
[1753137904170,1e-08,3778.1,3778.0,14.49544843]
[1753137904401,1e-08,3778.1,3778.0,14.93674843]
[1753137905386,1e-08,3778.1,3778.0,14.93474843]
[1753137906001,1e-08,3778.1,3778.0,14.49344843]
[1753137906775,1e-08,3778.1,3778.0,14.93474843]
[1753137907107,1e-08,3778.1,3778.0,27.39831343]
[1753137907270,1e-08,3778.1,3778.0,23.00102343]
[1753137908105,1e-08,3778.1,3778.0,18.29198443]
[1753137908304,1e-08,3778.1,3778.0,16.80842843]
[1753137910177,1e-08,3778.1,3778.0,17.24972843]
[1753137910506,1e-08,3778.1,3778.0,16.80842843]
[1753137910933,1e-08,3778.1,3778.0,15.62473943]
[1753137911219,1e-08,3778.1,3778.0,6.19690312]
[1753137911393,1e-08,3778.1,3778.0,10.36937215]
[1753137911597,0.8045,3778.0,3777.7,2.64705245]
[1753137911809,0.287,3777.9,3777.8,4.696]
[1753137912532,0.287,3777.9,3777.8,7.696]
[1753137912705,0.287,3777.9,3777.8,7.695]
[1753137912922,1.0562,3777.9,3777.8,4.145]
[1753137913414,0.7692,3777.8,3777.3,6.54375006]
[1753137913614,1e-08,3778.1,3777.4,4.17047323]
[1753137913615,0.7692,3777.6,3777.4,4.17047323]
[1753137913917,0.7692,3777.6,3777.5,3.0]
[1753137914528,1.0562,3777.6,3777.5,3.0]
[1753137915204,1.0562,3777.6,3777.4,3.0]
[1753137915401,1.0562,3777.6,3777.3,6.54375006]
[1753137915402,0.9012,3777.4,3777.3,6.349]
[1753137915704,1.1882,3777.4,3777.3,10.491]
[1753137916305,9.89758227,3777.4,3777.3,0.001]
[1753137916508,9.89758227,3777.4,3777.3,4.142]
[1753137917131,9.89758227,3777.4,3777.3,0.001]
[1753137917319,9.89758227,3777.4,3777.3,4.142]
[1753137918210,9.89758227,3777.4,3777.3,0.001]
[1753137918849,3.83552355,3777.4,3777.3,0.001]
[1753137921423,1.1882,3777.4,3777.3,0.001]
[1753137921607,3.83552355,3777.4,3777.3,0.001]
[1753137926831,3.47196372,3777.2,3777.1,0.001]
[1753137927032,9.53402244,3777.2,3777.1,0.001]
[1753137927226,9.82102244,3777.2,3777.1,0.001]
[1753137928138,2.64788434,3776.6,3776.5,0.001]
[1753137928363,9.53444306,3776.6,3776.5,0.001]
[1753137928543,9.82144306,3776.6,3776.5,0.001]
[1753137931952,12.82144306,3776.6,3776.5,0.001]
[1753137932982,12.82144306,3776.6,3776.5,1e-08]
[1753137933202,3.41324536,3775.8,3775.7,0.001]
[1753137933365,9.47530408,3775.8,3775.7,0.001]
[1753137933754,9.76230408,3775.8,3775.7,0.001]
[1753137934657,3.70024536,3775.8,3775.7,0.001]
[1753137941962,0.7648,3775.8,3775.7,0.001]
[1753137942176,2.64810522,3776.3,3775.7,0.001]
[1753137942376,2.64828536,3776.1,3775.7,0.001]
[1753137942591,2.64823588,3776.1,3775.7,0.001]
[1753137943189,2.64823588,3776.1,3776.0,0.8]
[1753137944401,2.64802968,3776.4,3776.0,0.8]
[1753137944402,2.64816664,3776.2,3776.0,0.8]
[1753137944971,2.64823495,3776.1,3776.0,0.8]
[1753137946201,2.64823495,3776.1,3775.8,4.111]
[1753137946405,2.64830968,3776.0,3775.8,4.111]
[1753137946710,0.132,3775.8,3775.7,0.001]
[1753137947010,0.132,3775.8,3775.7,4.11]
[1753137948010,3.59444536,3775.8,3775.7,4.11]
[1753137948214,3.59444536,3775.8,3775.7,4.909]
[1753137948382,3.88144536,3775.8,3775.7,0.001]
[1753137948709,3.88144536,3775.8,3775.7,4.108]
[1753137949512,3.88144536,3775.8,3775.7,0.001]
[1753137950992,9.94350408,3775.8,3775.7,0.001]
[1753137953110,9.89540408,3775.8,3775.7,0.001]
[1753137953513,9.60840408,3775.8,3775.7,0.001]
[1753137953719,9.89540408,3775.8,3775.7,0.001]
[1753137954490,2.6485155,3775.7,3775.6,0.001]
[1753137954786,3.41476628,3775.2,3775.1,0.001]
[1753137955615,3.70176628,3775.2,3775.1,0.001]
[1753137957449,3.72936628,3775.2,3775.1,0.001]
[1753137959814,6.72936628,3775.2,3775.1,0.001]
[1753137962861,6.72936628,3775.2,3775.1,1e-08]
[1753137964243,6.72936628,3775.2,3774.3,0.001]
[1753137964244,3.42822772,3774.4,3774.3,0.001]
[1753137964412,9.49028644,3774.4,3774.3,0.001]
[1753137964614,9.77728644,3774.4,3774.3,0.001]
[1753137966479,9.49028644,3774.4,3774.3,0.001]
[1753137969151,2.64917713,3774.8,3774.3,0.001]
[1753137969152,6.06205872,3775.2,3774.3,0.468]
[1753137969325,0.0921,3776.3,3774.3,0.001]
[1753137969326,8.71148644,3774.4,3774.3,0.001]
[1753137977467,9.81598644,3774.4,3774.3,0.001]
[1753137977687,2.64956812,3774.2,3774.1,0.001]
[1753137977975,6.46706812,3774.2,3774.1,0.001]
[1753137978277,6.75406812,3774.2,3774.1,0.001]
[1753137979138,8.71204812,3773.6,3773.5,0.001]
[1753137980934,8.71204812,3773.6,3773.5,0.4366]
[1753137981136,8.71204812,3773.6,3773.5,0.001]
[1753137982673,9.53444812,3773.6,3773.5,0.001]
[1753137982974,9.82144812,3773.6,3773.5,0.001]
[1753137987812,9.53444812,3773.6,3773.5,0.001]
[1753137990990,13.61044812,3773.6,3773.5,0.001]
[1753137992512,16.89744812,3773.6,3773.5,0.001]